bitfinex-derivatives/quotes_BTCF0:USTF0_20240820
["timestamp","ask_amount","ask_price","bid_price","bid_amount"]
[1724115877500,0.3608,60936.0,60931.0,0.08203]
[1724115877896,0.1452,60944.0,60935.0,0.082026]
[1724115878101,0.3052,60944.0,60928.0,0.2837]
[1724115878293,0.3608,60945.0,60934.0,0.365726]
[1724115878494,0.003,60936.0,60934.0,0.082026]
[1724115878697,0.003,60936.0,60926.0,0.442836]
[1724115878898,0.3608,60945.0,60926.0,0.3608]
[1724115879095,0.3608,60940.0,60935.0,0.001]
[1724115879401,0.009,60944.0,60935.0,0.001]
[1724115879597,0.179,60944.0,60935.0,0.001]
[1724115879991,1.07128,60944.0,60935.0,0.001]
[1724115880192,0.082023,60937.0,60935.0,0.001]
[1724115880398,0.142,60936.0,60926.0,0.3608]
[1724115880598,0.3608,60934.0,60923.0,0.00024621]
[1724115880798,0.3608,60926.0,60923.0,0.00024621]
[1724115881100,0.5308,60926.0,60923.0,0.00024621]
[1724115881701,0.082048,60919.0,60912.0,0.0001623]
[1724115881906,0.3608,60915.0,60912.0,0.0001623]
[1724115882096,0.5208,60915.0,60912.0,0.0001623]
[1724115882506,0.5208,60915.0,60903.0,0.082068]
[1724115882507,0.49252,60914.0,60903.0,0.082068]
[1724115882695,0.49252,60914.0,60899.0,0.2837]
[1724115882696,3.77,60913.0,60899.0,0.2837]
[1724115882896,3.91,60913.0,60902.0,0.00024621]
[1724115883298,0.442861,60909.0,60902.0,0.00024621]
[1724115883504,0.00016784,60908.0,60902.0,0.00024621]
[1724115883904,0.08223084,60908.0,60902.0,0.00024621]
[1724115884204,3.77016784,60908.0,60902.0,0.01024621]
[1724115884702,3.77016784,60908.0,60902.0,0.00824621]
[1724115884703,3.77116784,60908.0,60902.0,0.00824621]
[1724115885004,0.082068,60904.0,60902.0,0.00824621]
[1724115885193,0.082068,60904.0,60902.0,0.00024621]
[1724115885400,3.77112785,60908.0,60902.0,0.00424621]
[1724115885600,3.93016784,60908.0,60902.0,0.00424621]
[1724115885894,4.01223084,60908.0,60902.0,0.00424621]
[1724115886098,0.16016784,60908.0,60902.0,0.00424621]
[1724115886511,0.00016784,60908.0,60902.0,0.00424621]
[1724115887299,0.00016784,60908.0,60902.0,0.00024621]
[1724115887495,0.00116784,60908.0,60902.0,0.00024621]
[1724115887904,0.3608,60904.0,60902.0,0.00024621]
[1724115888513,0.00116784,60908.0,60902.0,0.00024621]
[1724115889102,0.00016784,60908.0,60902.0,0.00024621]
[1724115889304,0.00216784,60908.0,60902.0,0.00024621]
[1724115889515,0.3608,60904.0,60902.0,0.00024621]
[1724115890009,0.082067,60905.0,60902.0,0.00024621]
[1724115890410,0.3608,60903.0,60902.0,0.00024621]
[1724115890798,1.2534,60903.0,60902.0,0.00024621]
[1724115891003,0.8534,60903.0,60902.0,0.00024621]
[1724115891702,1.2554,60903.0,60902.0,0.00024621]
[1724115892223,1.2584,60903.0,60902.0,0.00024621]
[1724115892507,0.082083,60892.0,60891.0,0.3608]
[1724115892718,0.082083,60892.0,60873.0,0.062078]
[1724115892719,0.08208,60895.0,60885.0,0.3608]
[1724115892903,0.00017125,60892.0,60888.0,0.082088]
[1724115893304,0.00017125,60892.0,60890.0,0.082086]
[1724115894627,0.00117125,60892.0,60890.0,0.089086]
[1724115895007,0.00117125,60892.0,60890.0,0.007]
[1724115895315,0.00117125,60892.0,60891.0,0.442885]
[1724115895316,2.5e-07,60892.0,60891.0,0.442885]
[1724115895616,2.5e-07,60892.0,60891.0,0.082085]
[1724115896808,2.5e-07,60892.0,60890.0,0.007]
[1724115897006,0.442885,60891.0,60890.0,0.007]
[1724115897314,0.442885,60891.0,60890.0,0.00549559]
[1724115897509,0.442885,60891.0,60885.0,0.00024621]
[1724115897707,3.77,60890.0,60885.0,0.00024621]
[1724115898907,0.3608,60891.0,60885.0,0.00024621]
[1724115899108,0.3608,60891.0,60886.0,0.082091]
[1724115899412,3.77,60890.0,60886.0,0.082091]
[1724115899717,3.77,60890.0,60885.0,0.00024621]
[1724115899718,3.77,60890.0,60889.0,0.3608]
[1724115899916,0.00024621,60897.0,60889.0,0.3608]
[1724115900217,0.08232321,60897.0,60889.0,0.3608]
[1724115900619,0.001,60890.0,60889.0,0.3608]
[1724115901208,0.08232321,60897.0,60889.0,0.3608]
[1724115901513,0.00024621,60897.0,60893.0,0.082082]
[1724115901909,0.00024621,60897.0,60889.0,0.3608]
[1724115901910,0.00024621,60897.0,60894.0,0.08208]
[1724115902221,0.00024621,60897.0,60893.0,0.082081]
[1724115902418,0.00024621,60897.0,60896.0,0.3608]
[1724115902822,0.44179853,60922.0,60896.0,0.85344]
[1724115902823,0.08205,60917.0,60896.0,0.85344]
[1724115903021,0.3608,60922.0,60909.0,0.3608]
[1724115903324,0.3608,60931.0,60919.0,0.3608]
[1724115903521,0.08099853,60942.0,60928.0,0.082034]
[1724115903522,0.50801065,60942.0,60928.0,0.082034]
[1724115903723,0.442817,60942.0,60928.0,0.082034]
[1724115904021,0.082019,60941.0,60929.0,0.00024621]
[1724115904214,0.24226449,60941.0,60929.0,0.00024621]
[1724115904415,0.3608,60936.0,60929.0,0.00024621]
[1724115904625,0.442832,60931.0,60929.0,0.00024621]
[1724115904814,0.5008,60931.0,60928.0,0.001]
[1724115905224,0.574393,60930.0,60928.0,0.001]
[1724115905521,0.574393,60930.0,60910.0,0.2837]
[1724115905522,0.64236,60930.0,60912.0,0.3608]
[1724115905819,0.082044,60922.0,60903.0,0.427]
[1724115906120,0.3608,60931.0,60903.0,0.427]
[1724115906121,0.00024621,60919.0,60915.0,0.00024621]
[1724115906812,0.36104621,60919.0,60915.0,0.00024621]
[1724115907013,0.082051,60917.0,60915.0,0.00024621]
[1724115907216,0.232051,60917.0,60915.0,0.00024621]
[1724115907413,0.49248,60916.0,60915.0,0.00024621]
[1724115907615,0.64248,60916.0,60915.0,0.00024621]
[1724115907814,0.64248,60916.0,60915.0,0.00224621]
[1724115908016,4.41248,60916.0,60915.0,0.00224621]
[1724115908212,4.81248,60916.0,60915.0,0.00224621]
[1724115908415,4.81248,60916.0,60915.0,0.00124621]
[1724115909125,4.81648,60916.0,60915.0,0.00124621]
[1724115909318,4.96378,60916.0,60915.0,0.00124621]
[1724115910129,4.97656407,60916.0,60915.0,0.00124621]
[1724115910317,0.082077,60897.0,60889.0,0.3608]
[1724115910515,0.2837,60911.0,60889.0,0.3608]
[1724115910516,0.3608,60899.0,60889.0,0.3608]
[1724115910722,0.08208,60895.0,60889.0,0.3608]
[1724115911425,0.3608,60891.0,60886.0,0.00024621]
[1724115911723,0.5308,60891.0,60886.0,0.00024621]
[1724115911921,0.5308,60891.0,60889.0,0.006]
[1724115912630,0.842885,60891.0,60889.0,0.006]
[1724115912923,0.49268,60890.0,60889.0,0.006]
[1724115913126,0.64268,60890.0,60889.0,0.006]
[1724115913324,1.17968,60890.0,60889.0,0.006]
[1724115913524,4.94968,60890.0,60889.0,0.006]
[1724115913728,4.94968,60890.0,60886.0,0.00724621]
[1724115914028,0.36579,60888.0,60886.0,0.00724621]
[1724115914217,0.23209,60888.0,60886.0,0.00024621]
[1724115914416,0.49272,60887.0,60886.0,0.00024621]
[1724115914616,0.64272,60887.0,60886.0,0.00024621]
[1724115914823,0.3608,60890.0,60886.0,0.00024621]
[1724115915129,3.77,60889.0,60886.0,0.00724621]
[1724115915426,0.6008,60892.0,60886.0,0.00724621]
[1724115915427,0.00084,60892.0,60886.0,0.00024621]
[1724115915619,0.00024621,60898.0,60889.0,0.3608]
[1724115916021,0.00024621,60898.0,60896.0,0.082077]
[1724115916332,0.00024621,60898.0,60889.0,0.3608]
[1724115916526,0.00024621,60898.0,60890.0,0.082086]
[1724115917415,0.00024621,60898.0,60886.0,0.00724621]
[1724115917621,0.3608,60896.0,60886.0,0.00724621]
[1724115917923,0.3608,60896.0,60886.0,0.00024621]
[1724115917924,0.5208,60896.0,60886.0,0.00024621]
[1724115918123,0.5208,60896.0,60890.0,0.002]
[1724115918317,0.08165917,60895.0,60890.0,0.002]
[1724115918623,0.08165917,60895.0,60886.0,0.00024621]
[1724115918624,0.3608,60891.0,60886.0,0.01424621]
[1724115918830,0.3608,60888.0,60886.0,0.01424621]
[1724115919027,0.3608,60888.0,60886.0,0.01324621]
[1724115919028,0.5308,60888.0,60886.0,0.01324621]
[1724115919232,0.49272,60887.0,60886.0,0.01324621]
[1724115919423,0.66272,60887.0,60886.0,0.01324621]
[1724115919627,1.06272,60887.0,60886.0,0.01324621]
[1724115919916,4.83272,60887.0,60886.0,0.01324621]
[1724115920720,5.02184084,60887.0,60880.0,0.00024621]
[1724115920923,0.442898,60881.0,60880.0,0.00024621]
[1724115921228,0.592898,60881.0,60880.0,0.00024621]
[1724115921422,1.485658,60881.0,60880.0,0.00024621]
[1724115922019,1.58232201,60881.0,60880.0,0.014]
[1724115922224,1.30362001,60881.0,60880.0,0.014]
[1724115922424,1.31916316,60881.0,60880.0,0.014]
[1724115922626,5.1049369,60881.0,60871.0,0.00014113]
[1724115922823,0.001,60881.0,60880.0,0.0821]
[1724115923230,0.001,60881.0,60875.0,0.3608]
[1724115923428,0.001,60881.0,60877.0,0.082103]
[1724115923836,0.5318,60881.0,60877.0,0.082103]
[1724115924134,0.006,60881.0,60880.0,0.001]
[1724115924829,1.05876,60881.0,60880.0,0.001]
[1724115925332,1.05876,60881.0,60877.0,0.007]
[1724115925333,0.5218,60881.0,60877.0,0.007]
[1724115925635,0.5018,60881.0,60877.0,0.007]
[1724115926223,0.001,60881.0,60877.0,0.007]
[1724115926426,0.141,60881.0,60877.0,0.007]
[1724115926833,0.3608,60878.0,60877.0,0.007]
[1724115927134,0.5208,60878.0,60874.0,0.00024621]
[1724115927928,0.3608,60876.0,60874.0,0.00024621]
[1724115928127,0.5308,60876.0,60874.0,0.00024621]
[1724115928326,0.5308,60876.0,60874.0,0.00124621]
[1724115928327,0.4928,60875.0,60874.0,0.00124621]
[1724115928527,0.6428,60875.0,60874.0,0.00124621]
[1724115928723,4.8128,60875.0,60874.0,0.00124621]
[1724115930036,4.98543837,60875.0,60874.0,0.00124621]
[1724115930234,4.98543837,60875.0,60874.0,0.00024621]
[1724115930430,4.98543837,60875.0,60874.0,0.00124621]
[1724115930627,4.98543837,60875.0,60871.0,0.00014113]
[1724115930628,0.16422,60872.0,60871.0,0.00014113]
[1724115930830,0.082117,60867.0,60852.0,0.082137]
[1724115931133,0.3608,60857.0,60852.0,0.082137]
[1724115931328,0.5108,60857.0,60852.0,0.082137]
[1724115931526,0.5108,60857.0,60846.0,0.082145]
[1724115931729,0.5108,60857.0,60848.0,0.00016557]
[1724115932235,0.5108,60857.0,60850.0,0.08214]
[1724115932626,0.5108,60857.0,60851.0,0.082138]
[1724115933233,0.74084,60857.0,60851.0,0.082138]
[1724115933734,0.74084,60857.0,60852.0,0.006]
[1724115934123,0.592931,60857.0,60852.0,0.006]
[1724115934336,0.312172,60856.0,60851.0,0.005]
[1724115934532,0.3608,60852.0,60851.0,0.005]
[1724115934732,0.5308,60852.0,60851.0,0.005]
[1724115935038,0.5308,60852.0,60848.0,0.00016557]
[1724115937740,0.5308,60852.0,60848.0,0.00216557]
[1724115938631,0.612938,60852.0,60848.0,0.00216557]
[1724115938838,0.442941,60849.0,60848.0,0.00216557]
[1724115939133,0.602941,60849.0,60848.0,0.00216557]
[1724115939336,1.495981,60849.0,60848.0,0.00216557]
[1724115939836,1.67207377,60849.0,60848.0,0.00216557]
[1724115940232,1.75421477,60849.0,60848.0,0.00216557]
[1724115940433,1.75421477,60849.0,60828.0,0.00017375]
[1724115940434,0.082165,60832.0,60828.0,0.00017375]
[1724115940627,0.3608,60829.0,60828.0,0.00017375]
[1724115940940,0.5208,60829.0,60828.0,0.00017375]
[1724115941531,0.3608,60829.0,60828.0,0.00017375]
[1724115941744,4.1308,60829.0,60828.0,0.00017375]
[1724115941939,4.1308,60829.0,60828.0,0.00217375]
[1724115942131,4.2808,60829.0,60828.0,0.00217375]
[1724115942436,0.3608,60829.0,60828.0,0.00217375]
[1724115942843,4.1308,60829.0,60828.0,0.00217375]
[1724115943030,0.3608,60829.0,60828.0,0.00217375]
[1724115944339,0.5208,60829.0,60828.0,0.00217375]
[1724115944741,1.414,60829.0,60828.0,0.00217375]
[1724115945335,5.20002169,60829.0,60828.0,0.00217375]
[1724115947346,5.20002169,60829.0,60828.0,7.5e-07]
[1724115947644,0.082173,60826.0,60802.0,0.3608]
[1724115947850,0.082173,60826.0,60797.0,0.1121]
[1724115947851,0.3608,60807.0,60797.0,0.1121]
[1724115948052,0.3608,60800.0,60797.0,0.1121]
[1724115948346,0.00016782,60799.0,60797.0,0.1121]
[1724115948545,0.00016782,60799.0,60796.0,0.1098]
[1724115948746,0.16016782,60799.0,60792.0,0.082218]
[1724115949445,0.3608,60793.0,60785.0,0.082228]
[1724115949949,0.5308,60793.0,60785.0,0.082228]
[1724115950449,0.5278,60793.0,60785.0,0.082228]
[1724115950649,0.5278,60793.0,60784.0,0.1121]
[1724115950851,0.3608,60788.0,60785.0,0.001]
[1724115951056,0.00014988,60787.0,60785.0,0.001]
[1724115951246,0.28414988,60787.0,60785.0,0.001]
[1724115951554,0.43414988,60787.0,60785.0,0.001]
[1724115951943,0.43414988,60787.0,60779.0,0.1089]
[1724115952141,0.3608,60780.0,60771.0,0.3608]
[1724115952340,0.3608,60775.0,60771.0,0.082246]
[1724115952544,0.00017375,60774.0,60771.0,0.082246]
[1724115952753,4.1308,60775.0,60771.0,0.082246]
[1724115953243,4.1308,60775.0,60766.0,0.3608]
[1724115953443,4.1308,60775.0,60766.0,0.443053]
[1724115953850,4.1308,60775.0,60766.0,0.3608]
[1724115954244,4.1308,60775.0,60771.0,0.082246]
[1724115954449,0.3608,60775.0,60771.0,0.082246]
[1724115954843,0.3618,60775.0,60771.0,0.082246]
[1724115955152,0.3618,60775.0,60766.0,0.3608]
[1724115955340,0.3618,60775.0,60771.0,0.082246]
[1724115956144,0.3608,60790.0,60772.0,0.49364]
[1724115956342,0.3608,60790.0,60778.0,0.3608]
[1724115956555,0.3608,60790.0,60779.0,0.082236]
[1724115956848,0.3608,60790.0,60779.0,0.204636]
[1724115957149,0.3608,60790.0,60779.0,0.1224]
[1724115957351,0.00024665,60791.0,60789.0,0.082222]
[1724115957849,0.00024665,60791.0,60784.0,0.3608]
[1724115958054,0.3618,60790.0,60779.0,0.1224]
[1724115958350,0.001,60790.0,60780.0,0.3608]
[1724115958655,0.001,60790.0,60787.0,0.3608]
[1724115958856,0.001,60790.0,60779.0,0.1224]
[1724115959047,0.08746665,60791.0,60779.0,0.1224]
[1724115959354,0.08746665,60791.0,60779.0,0.204636]
[1724115959549,0.44826665,60791.0,60779.0,0.204636]
[1724115960152,0.44826665,60791.0,60780.0,0.082234]
[1724115960447,0.44826665,60791.0,60780.0,0.443034]
[1724115960850,0.44826665,60791.0,60780.0,0.083234]
[1724115960851,0.083221,60790.0,60780.0,0.083234]
[1724115961150,0.3608,60785.0,60780.0,0.001]
[1724115961345,0.583028,60785.0,60780.0,0.001]
[1724115961546,0.5008,60785.0,60780.0,0.001]
[1724115962044,0.083222,60790.0,60780.0,0.001]
[1724115963041,0.082223,60789.0,60781.0,0.082233]
[1724115963247,0.001,60790.0,60780.0,0.001]
[1724115963456,0.161,60790.0,60780.0,0.001]
[1724115963655,0.16,60790.0,60778.0,0.36104665]
[1724115963954,0.001,60785.0,60780.0,0.001]
[1724115964350,0.001,60785.0,60778.0,0.00024665]
[1724115964351,0.082235,60780.0,60778.0,0.00024665]
[1724115964550,0.232235,60780.0,60778.0,0.00024665]
[1724115964753,0.3608,60785.0,60778.0,0.00024665]
[1724115965243,0.3618,60785.0,60780.0,0.001]
[1724115966053,0.5118,60785.0,60780.0,0.001]
[1724115966253,0.082231,60783.0,60780.0,0.001]
[1724115966454,3.77,60782.0,60780.0,0.001]
[1724115966652,4.002233,60782.0,60780.0,0.001]
[1724115966851,4.002233,60782.0,60778.0,0.00124665]
[1724115967048,3.92,60782.0,60778.0,0.00124665]
[1724115967453,0.082234,60781.0,60778.0,0.00024665]
[1724115967755,0.232234,60781.0,60780.0,0.001]
[1724115968152,0.232234,60781.0,60778.0,0.00124665]
[1724115968153,0.15,60781.0,60778.0,0.00124665]
[1724115968552,0.15,60781.0,60778.0,0.00024665]
[1724115968753,0.151,60781.0,60778.0,0.00124665]
[1724115969157,0.3608,60780.0,60778.0,0.00124665]
[1724115969357,0.5108,60780.0,60778.0,0.00124665]
[1724115969555,0.082236,60779.0,60778.0,0.00124665]
[1724115969757,0.222236,60779.0,60778.0,0.00124665]
[1724115971051,0.223236,60779.0,60778.0,0.00124665]
[1724115973765,0.08225,60769.0,60763.0,0.0465585]
[1724115974061,0.082251,60768.0,60761.0,0.20156]
[1724115974260,0.082251,60768.0,60761.0,0.1658585]
[1724115974457,0.082251,60768.0,60765.0,0.0465585]
[1724115975156,0.083251,60768.0,60767.0,0.00112612]
[1724115977258,0.233251,60768.0,60767.0,0.00112612]
[1724115977569,0.083251,60768.0,60767.0,0.00112612]
[1724115978272,0.527251,60768.0,60767.0,0.00112612]
[1724115979168,0.243251,60768.0,60767.0,0.00112612]
[1724115979378,0.161,60768.0,60767.0,0.00112612]
[1724115980261,0.16,60768.0,60767.0,0.00012612]
[1724115980562,0.161,60768.0,60767.0,0.00012612]
[1724115982668,0.243251,60768.0,60767.0,0.00012612]
[1724115984171,0.243251,60768.0,60749.0,0.04710113]
[1724115984172,1.338806,60768.0,60749.0,0.04710113]
[1724115984372,0.082277,60749.0,60741.0,0.04710113]
[1724115984694,0.082277,60749.0,60740.0,0.122]
[1724115984988,0.082277,60749.0,60733.0,0.062078]
[1724115984989,0.3608,60744.0,60733.0,0.04710113]
[1724115985294,0.3608,60734.0,60726.0,0.04710113]
[1724115985479,0.3608,60739.0,60729.0,0.3608]
[1724115985888,0.3608,60739.0,60730.0,0.082302]
[1724115987289,0.3608,60739.0,60737.0,0.3608]
[1724115987290,0.001,60739.0,60737.0,0.3608]
[1724115987496,0.001,60739.0,60738.0,0.082291]
[1724115988685,0.3608,60764.0,60739.0,0.49392]
[1724115988891,0.3608,60764.0,60751.0,0.082274]
[1724115988892,3.77,60759.0,60751.0,0.082274]
[1724115989087,3.77,60759.0,60744.0,0.082282]
[1724115989088,3.77092,60759.0,60744.0,0.082282]
[1724115989386,4.05492,60759.0,60745.0,0.082282]
[1724115989894,0.00024689,60756.0,60745.0,0.082282]
[1724115990087,0.444071,60754.0,60743.0,0.36104689]
[1724115990492,0.3618,60754.0,60748.0,0.082277]
[1724115991188,0.3608,60754.0,60748.0,0.082277]
[1724115991491,0.3618,60754.0,60748.0,0.082277]
[1724115992191,0.16397374,60781.0,60748.0,0.082277]
[1724115992192,0.443043,60774.0,60762.0,0.082259]
[1724115992392,0.443043,60774.0,60750.0,0.7216]
[1724115992393,0.613043,60774.0,60764.0,0.082256]
[1724115992592,3.852244,60773.0,60764.0,0.082256]
[1724115993784,0.01542264,60775.0,60773.0,0.082243]
[1724115993785,0.00024689,60775.0,60773.0,0.082243]
[1724115993987,0.00024689,60775.0,60773.0,0.482243]
[1724115994188,0.00024689,60775.0,60774.0,0.49364]
[1724115994392,4.1308,60787.0,60774.0,0.49364]
[1724115994693,4.1308,60787.0,60779.0,0.082236]
[1724115994893,0.3608,60787.0,60780.0,0.3608]
[1724115995283,0.3608,60787.0,60783.0,0.08223]
[1724115995793,0.3608,60787.0,60785.0,0.082227]
[1724115995988,0.00024689,60790.0,60789.0,0.082222]
[1724115996382,0.00024689,60790.0,60786.0,0.3608]
[1724115996992,0.00024689,60790.0,60788.0,0.082223]
[1724115997189,0.01555206,60808.0,60799.0,0.082209]
[1724115997493,3.77,60808.0,60799.0,0.082209]
[1724115997884,3.77,60808.0,60801.0,0.3608]
[1724115998196,0.3608,60809.0,60801.0,0.3608]
[1724115999889,0.082197,60808.0,60801.0,0.3608]
[1724116000183,0.3608,60809.0,60801.0,0.3608]
[1724116000590,0.3618,60809.0,60804.0,0.082202]
[1724116000792,0.3618,60809.0,60801.0,0.3668]
[1724116001189,0.00024689,60811.0,60807.0,0.082198]
[1724116001190,0.001,60808.0,60807.0,0.082198]
[1724116001393,0.1237,60824.0,60807.0,0.082198]
[1724116001394,0.284,60827.0,60808.0,0.49336]
[1724116001597,0.284,60827.0,60816.0,0.082185]
[1724116001790,0.284,60827.0,60815.0,0.3608]
[1724116001990,0.3608,60828.0,60815.0,0.3608]
[1724116002194,0.01504012,60832.0,60815.0,0.3608]
[1724116002395,0.284,60827.0,60815.0,0.3608]
[1724116002592,0.284,60827.0,60817.0,0.00024667]
[1724116002991,0.3608,60824.0,60817.0,0.00024667]
[1724116003895,0.082181,60820.0,60817.0,0.00024667]
[1724116004098,0.082181,60820.0,60817.0,0.00824667]
[1724116004398,0.442983,60819.0,60817.0,0.0029661]
[1724116004786,0.3608,60819.0,60817.0,0.007]
[1724116004991,0.082183,60818.0,60817.0,0.007]
[1724116005285,0.082183,60818.0,60807.0,0.3608]
[1724116005286,0.082183,60818.0,60811.0,0.00024667]
[1724116005896,0.6448,60813.0,60811.0,0.00024667]
[1724116006092,0.89699,60813.0,60811.0,0.00024667]
[1724116007492,0.89699,60813.0,60811.0,0.00124667]
[1724116007493,0.49332,60812.0,60811.0,0.00124667]
[1724116007797,0.66332,60812.0,60811.0,0.00124667]
[1724116007994,1.06332,60812.0,60789.0,0.082222]
[1724116008196,0.3608,60795.0,60784.0,0.443029]
[1724116008394,0.5108,60795.0,60784.0,0.3608]
[1724116008696,0.11283061,60786.0,60784.0,0.3608]
[1724116009295,0.03200235,60791.0,60784.0,0.3608]
[1724116009296,0.11283061,60787.0,60785.0,0.082227]
[1724116010101,0.11283061,60789.0,60787.0,0.082225]
[1724116010302,0.00024667,60791.0,60788.0,0.082223]
[1724116010303,0.11283061,60790.0,60788.0,0.082223]
[1724116010493,0.11383301,60791.0,60790.0,0.082221]
[1724116010796,0.14558567,60791.0,60790.0,0.975701]
[1724116011307,0.03199933,60791.0,60790.0,0.975701]
[1724116011511,0.03199933,60791.0,60790.0,0.575701]
[1724116011799,0.03199933,60791.0,60790.0,0.975701]
[1724116013194,0.03199933,60791.0,60790.0,0.575701]
[1724116013505,0.03199933,60791.0,60790.0,0.082221]
[1724116013698,0.03299933,60791.0,60790.0,0.581701]
[1724116013898,0.03299933,60791.0,60790.0,1.342501]
[1724116014099,0.04025788,60800.0,60790.0,1.342501]
[1724116014100,0.12982465,60793.0,60791.0,0.08222]
[1724116014406,0.03175096,60792.0,60791.0,0.08222]
[1724116014802,0.03175096,60792.0,60791.0,0.5757]
[1724116014996,0.03175096,60792.0,60791.0,0.9757]
[1724116015593,0.03275096,60792.0,60791.0,0.9847]
[1724116015802,0.001,60792.0,60791.0,0.5847]
[1724116018007,0.001,60792.0,60791.0,0.09122]
[1724116019607,0.001,60792.0,60791.0,0.5847]
[1724116020507,0.001,60792.0,60791.0,0.09122]
[1724116024014,0.001,60792.0,60791.0,0.9847]
[1724116024506,0.00024667,60798.0,60797.0,0.082212]
[1724116024710,0.06498365,60808.0,60797.0,0.7608]
[1724116024902,0.06498365,60812.0,60810.0,0.082194]
[1724116025101,0.42578365,60813.0,60806.0,0.3608]
[1724116025699,0.42578365,60813.0,60797.0,0.3608]
[1724116025700,0.5108,60813.0,60797.0,0.3698]
[1724116025904,0.5108,60813.0,60797.0,0.009]
[1724116025905,0.08221,60798.0,60797.0,0.009]
[1724116026201,0.3608,60801.0,60787.0,0.082224]
[1724116026202,0.082212,60797.0,60787.0,0.082224]
[1724116026405,0.082212,60797.0,60791.0,0.00024667]
[1724116026613,0.082212,60797.0,60775.0,0.04710113]
[1724116026614,0.3608,60793.0,60770.0,0.3608]
[1724116026818,0.082233,60782.0,60773.0,0.082243]
[1724116027104,0.082235,60781.0,60770.0,0.3608]
[1724116027313,0.082235,60781.0,60771.0,0.082246]
[1724116027502,0.3608,60786.0,60771.0,0.082246]
[1724116027812,0.00024667,60782.0,60771.0,0.082246]
[1724116028798,0.00024667,60782.0,60770.0,0.36104667]
[1724116029003,0.3608,60780.0,60770.0,0.00024667]
[1724116029214,0.1254,60779.0,60771.0,0.01]
[1724116029412,0.082243,60774.0,60771.0,0.01]
[1724116029813,0.214343,60774.0,60771.0,0.01]
[1724116030205,0.082245,60773.0,60770.0,0.00024667]
[1724116030405,0.082245,60773.0,60770.0,0.01124667]
[1724116030605,0.1321,60774.0,60770.0,0.01124667]
[1724116030606,0.082247,60771.0,60770.0,0.01124667]
[1724116030808,0.1321,60774.0,60750.0,0.443074]
[1724116031013,0.1321,60774.0,60750.0,0.444994]
[1724116031014,0.3608,60758.0,60750.0,0.444994]
[1724116031212,0.3608,60758.0,60750.0,0.443074]
[1724116031415,0.3608,60758.0,60749.0,0.00012375]
[1724116031613,0.082267,60757.0,60749.0,0.00012375]
[1724116032308,0.3608,60758.0,60749.0,0.00012375]
[1724116032309,0.082268,60756.0,60749.0,0.00012375]
[1724116033206,0.082268,60756.0,60749.0,0.00112375]
[1724116033405,3.77,60755.0,60752.0,0.3608]
[1724116033607,3.77,60755.0,60749.0,0.00112375]
[1724116034010,0.001,60756.0,60749.0,0.00112375]
[1724116034612,0.001,60756.0,60755.0,0.3608]
[1724116034814,0.001,60756.0,60749.0,0.00112375]
[1724116035112,0.001,60756.0,60754.0,0.3608]
[1724116035317,0.001,60756.0,60749.0,0.00112375]
[1724116035509,0.00024689,60759.0,60749.0,0.00112375]
[1724116035510,0.00024689,60759.0,60749.0,0.00012375]
[1724116035711,0.08251089,60759.0,60752.0,0.001]
[1724116036021,0.36104689,60759.0,60752.0,0.001]
[1724116036314,0.3608,60754.0,60749.0,0.00012375]
[1724116036705,0.082274,60751.0,60749.0,0.00012375]
[1724116037317,0.222274,60751.0,60749.0,0.00012375]
[1724116037512,0.222274,60751.0,60749.0,0.00112375]
[1724116037918,0.082274,60751.0,60749.0,0.00112375]
[1724116039017,0.083274,60751.0,60749.0,0.00112375]
[1724116039622,0.082274,60751.0,60749.0,0.00112375]
[1724116040522,3.77,60750.0,60733.0,0.3608]
[1724116040711,0.3608,60741.0,60733.0,0.443098]
[1724116041625,0.00012375,60740.0,60733.0,0.443098]
[1724116042019,0.082291,60739.0,60733.0,0.443098]
[1724116042226,0.082292,60738.0,60733.0,0.3608]
[1724116042520,0.082292,60738.0,60731.0,0.00024689]
[1724116042915,0.00012375,60740.0,60731.0,0.00024689]
[1724116043116,0.17012375,60740.0,60731.0,0.00024689]
[1724116043310,0.001,60739.0,60731.0,0.00024689]
[1724116043518,0.082295,60736.0,60731.0,0.00024689]
[1724116044626,0.082299,60733.0,60731.0,0.00024689]
[1724116046217,0.083299,60733.0,60731.0,0.00024689]
[1724116047919,0.082313,60723.0,60715.0,0.082322]
[1724116048114,0.082316,60720.0,60715.0,0.082322]
[1724116048435,0.04113999,60720.0,60715.0,0.082322]
[1724116048625,0.3608,60725.0,60717.0,0.3608]
[1724116049016,0.3608,60725.0,60722.0,0.082313]
[1724116049223,0.082311,60724.0,60717.0,0.3608]
[1724116049423,0.001,60720.0,60718.0,0.082317]
[1724116049619,0.001,60720.0,60717.0,0.3608]
[1724116049816,0.001,60720.0,60715.0,0.00024689]
[1724116050018,0.082317,60720.0,60715.0,0.00024689]
[1724116050827,0.083317,60720.0,60715.0,0.00024689]
[1724116051133,0.082319,60718.0,60715.0,0.00024689]
[1724116051327,0.00012375,60717.0,60715.0,0.00024689]
[1724116051521,0.08244475,60717.0,60715.0,0.00024689]
[1724116051920,0.49412,60716.0,60715.0,0.00024689]
[1724116052133,0.082332,60708.0,60699.0,0.3608]
[1724116052322,0.082332,60708.0,60692.0,0.3608]
[1724116052323,0.222332,60708.0,60697.0,0.3608]
[1724116052530,0.082338,60704.0,60697.0,0.3608]
[1724116053526,0.00020906,60703.0,60697.0,0.3608]
[1724116054232,0.3608,60702.0,60697.0,0.3608]
[1724116054538,0.3608,60698.0,60689.0,0.082357]
[1724116054838,3.77,60697.0,60689.0,0.082357]
[1724116055137,3.77,60697.0,60683.0,0.2549]
[1724116055138,0.3608,60693.0,60683.0,0.2549]
[1724116055636,0.3608,60693.0,60680.0,0.3608]
[1724116056032,0.082357,60690.0,60680.0,0.3608]